bitfinex/quotes_BTCUSD_20251015
["timestamp","ask_amount","ask_price","bid_price","bid_amount"]
[1760529201529,0.2,112190.0,112180.0,0.41158193]
[1760529202159,0.2,112190.0,112180.0,0.52346193]
[1760529202374,0.2,112190.0,112180.0,0.41158193]
[1760529202605,0.2,112190.0,112180.0,0.52446193]
[1760529203269,0.2,112190.0,112180.0,0.14651764]
[1760529203513,0.2,112190.0,112180.0,0.52546193]
[1760529203735,0.2,112190.0,112180.0,0.41358193]
[1760529203945,0.2,112190.0,112180.0,0.52546193]
[1760529204153,0.2,112190.0,112180.0,0.52542193]
[1760529204371,0.2,112190.0,112180.0,0.41358193]
[1760529204575,0.2,112190.0,112180.0,0.52542193]
[1760529204778,0.2,112190.0,112180.0,0.14747764]
[1760529204989,0.2,112190.0,112180.0,0.16530612]
[1760529205872,0.2,112190.0,112180.0,0.05346612]
[1760529206079,0.2,112190.0,112180.0,0.16530612]
[1760529208506,0.2,112190.0,112180.0,0.18524168]
[1760529209161,0.2,112190.0,112180.0,0.58089122]
[1760529209384,0.2,112190.0,112180.0,0.94100703]
[1760529209632,0.2,112190.0,112180.0,0.45118572]
[1760529209858,0.2,112190.0,112180.0,0.56302572]
[1760529210957,0.2,112190.0,112180.0,0.18511845]
[1760529211170,0.2,112190.0,112180.0,0.50870068]
[1760529211800,0.2,112190.0,112180.0,0.42366883]
[1760529212214,0.2,112190.0,112180.0,0.53550883]
[1760529212440,0.2,112190.0,112180.0,0.42366883]
[1760529212682,0.2,112190.0,112180.0,0.53550883]
[1760529212887,0.2,112190.0,112180.0,0.62519091]
[1760529213094,0.2,112190.0,112180.0,0.51335091]
[1760529213349,0.2,112190.0,112180.0,0.04576156]
[1760529213769,0.2,112190.0,112180.0,0.15760156]
[1760529214909,0.2,112190.0,112180.0,0.04576156]
[1760529215108,0.2,112190.0,112180.0,0.15760156]
[1760529215887,0.2,112190.0,112180.0,0.53550883]
[1760529216090,0.2,112190.0,112180.0,0.58905971]
[1760529216294,0.2,112190.0,112180.0,0.47721971]
[1760529216502,0.2,112190.0,112180.0,0.02805631]
[1760529216878,0.2,112190.0,112180.0,0.13989631]
[1760529217244,0.2,112190.0,112180.0,0.02805631]
[1760529217393,0.2,112190.0,112180.0,0.13989631]
[1760529218759,0.2,112190.0,112180.0,0.02805631]
[1760529218965,0.2,112190.0,112180.0,0.14626112]
[1760529219593,0.19766287,112200.0,112180.0,0.03442112]
[1760529220230,0.19766287,112200.0,112190.0,0.11184]
[1760529220442,0.19766287,112200.0,112180.0,0.03342112]
[1760529220793,0.19766287,112200.0,112190.0,0.11184]
[1760529221054,0.19766287,112200.0,112190.0,0.12646611]
[1760529221667,0.19766287,112200.0,112190.0,0.11184]
[1760529221839,0.19766287,112200.0,112180.0,0.0502409]
[1760529222035,0.19766287,112200.0,112190.0,0.11284]
[1760529222245,0.19766287,112200.0,112190.0,0.11384]
[1760529223364,0.19766287,112200.0,112190.0,0.11284]
[1760529224017,0.19766287,112200.0,112190.0,0.001]
[1760529224461,0.19766287,112200.0,112190.0,0.002]
[1760529224670,0.19766287,112200.0,112190.0,0.11384]
[1760529224900,0.19766287,112200.0,112190.0,0.002]
[1760529225123,4.71633987,112200.0,112190.0,0.11384]
[1760529225568,4.71633987,112200.0,112190.0,0.002]
[1760529225773,4.71633987,112200.0,112190.0,0.11384]
[1760529226750,4.71633987,112200.0,112190.0,0.002]
[1760529226956,4.71633987,112200.0,112190.0,0.001]
[1760529227163,4.488677,112190.0,112180.0,0.11184]
[1760529227397,4.488677,112190.0,112170.0,0.01764809]
[1760529227608,4.488677,112190.0,112180.0,0.11184]
[1760529228014,4.488677,112190.0,112170.0,0.00589596]
[1760529228215,4.488677,112190.0,112180.0,0.11184]
[1760529228425,4.488677,112190.0,112180.0,0.001]
[1760529228680,4.488677,112190.0,112180.0,0.11284]
[1760529228889,4.488677,112190.0,112170.0,0.00157959]
[1760529229108,4.488677,112190.0,112180.0,0.11184]
[1760529229317,4.488677,112190.0,112170.0,0.00057959]
[1760529229954,4.488677,112190.0,112180.0,0.11184]
[1760529230495,4.488677,112190.0,112170.0,0.01938071]
[1760529230697,4.488677,112190.0,112170.0,0.02402034]
[1760529230899,4.488677,112190.0,112180.0,0.001]
[1760529231198,4.488677,112190.0,112180.0,0.002]
[1760529231398,4.488677,112190.0,112180.0,0.11384]
[1760529231613,4.488677,112190.0,112180.0,0.11284]
[1760529232183,0.09968208,112190.0,112180.0,0.001]
[1760529232381,0.0200001,112190.0,112180.0,0.001]
[1760529233561,0.0200001,112190.0,112180.0,0.002]
[1760529233790,0.0200001,112190.0,112180.0,0.001]
[1760529233989,0.0200001,112190.0,112170.0,0.06477959]
[1760529234200,0.0200001,112190.0,112180.0,0.001]
[1760529235251,0.0200001,112190.0,112170.0,0.11241959]
[1760529235451,0.0200001,112190.0,112170.0,0.00157959]
[1760529235654,0.0200001,112190.0,112170.0,0.11341959]
[1760529236732,0.0200001,112190.0,112170.0,0.11241959]
[1760529237132,0.0200001,112190.0,112180.0,0.001]
[1760529237334,0.0200001,112190.0,112170.0,0.00057959]
[1760529237539,0.0200001,112190.0,112170.0,0.00157959]
[1760529237764,0.0200001,112190.0,112170.0,0.11341959]
[1760529238569,0.0200001,112190.0,112170.0,0.00157959]
[1760529239212,0.0200001,112190.0,112170.0,0.11341959]
[1760529239419,0.01,112190.0,112180.0,0.01782848]
[1760529239778,0.0200001,112190.0,112180.0,0.01782848]
[1760529240826,0.0200001,112190.0,112180.0,0.01882848]
[1760529242441,0.0200001,112190.0,112180.0,0.001]
[1760529242955,0.0200001,112190.0,112180.0,0.01882848]
[1760529243631,0.0200001,112190.0,112180.0,0.001]
[1760529243808,0.0200001,112190.0,112180.0,0.01882848]
[1760529244010,0.0200001,112190.0,112180.0,0.001]
[1760529244224,0.01,112190.0,112180.0,0.01882848]
[1760529245242,0.0100001,112190.0,112180.0,0.03195329]
[1760529245460,4.488677,112190.0,112180.0,0.001]
[1760529245649,0.19766287,112200.0,112180.0,0.01882848]
[1760529245815,0.19766287,112200.0,112180.0,0.001]
[1760529246038,0.19766287,112200.0,112180.0,0.13066848]
[1760529246598,0.19766287,112200.0,112180.0,0.12966848]
[1760529247103,0.19766287,112200.0,112180.0,0.14269329]
[1760529249841,0.19766287,112200.0,112190.0,0.11184]
[1760529251170,0.19766287,112200.0,112190.0,0.001]
[1760529251519,0.19766287,112200.0,112190.0,0.002]
[1760529251752,0.19766287,112200.0,112190.0,0.11384]
[1760529251937,0.19766287,112200.0,112190.0,0.05694122]
[1760529252136,0.19766287,112200.0,112190.0,0.07476812]
[1760529252543,0.19766287,112200.0,112190.0,0.18660812]
[1760529252952,0.19766287,112200.0,112190.0,0.07476812]
[1760529253185,0.19766287,112200.0,112190.0,0.1316669]
[1760529253653,0.19766287,112200.0,112190.0,0.0198269]
[1760529253854,0.19766287,112200.0,112190.0,0.1316669]
[1760529254525,0.19766287,112200.0,112190.0,0.0198269]
[1760529254734,0.19766287,112200.0,112190.0,0.1316669]
[1760529255015,0.19766287,112200.0,112190.0,0.14881724]
[1760529255954,0.19766287,112200.0,112190.0,0.03697724]
[1760529256247,0.19766287,112200.0,112190.0,0.1316669]
[1760529256430,0.19766287,112200.0,112190.0,0.0198269]
[1760529256839,0.19766287,112200.0,112190.0,0.1316669]
[1760529257395,0.19766287,112200.0,112190.0,0.0198269]
[1760529257595,0.19766287,112200.0,112190.0,0.1316669]
[1760529257802,0.19766287,112200.0,112190.0,0.18660796]
[1760529261141,0.19766287,112200.0,112190.0,0.1316669]
[1760529262093,0.19766287,112200.0,112190.0,0.0198269]
[1760529262452,0.19766287,112200.0,112190.0,0.1316669]
[1760529263897,0.19766287,112200.0,112190.0,0.0198269]
[1760529264141,0.19766287,112200.0,112190.0,0.1316669]
[1760529264343,0.19766287,112200.0,112190.0,0.18660796]
[1760529265692,0.19766287,112200.0,112190.0,0.1316669]
[1760529267858,0.19766287,112200.0,112190.0,0.0198269]
[1760529268072,0.19766287,112200.0,112190.0,0.41395147]
[1760529268286,0.19766287,112200.0,112190.0,0.50796457]
[1760529268493,0.19766287,112200.0,112190.0,0.53477184]
[1760529268702,0.19766287,112200.0,112190.0,0.58955151]
[1760529269132,0.19766287,112200.0,112190.0,0.47771151]
[1760529269364,0.19766287,112200.0,112190.0,0.47671151]
[1760529269554,0.19766287,112200.0,112190.0,0.8554463]
[1760529269701,0.19766287,112200.0,112190.0,0.9672863]
[1760529269918,0.07234872,112200.0,112190.0,0.80266663]
[1760529270162,0.07234872,112200.0,112190.0,0.89235675]
[1760529270377,0.07234872,112200.0,112190.0,1.00415675]
[1760529276996,0.07234872,112200.0,112190.0,0.89235675]
[1760529277195,0.07234872,112200.0,112190.0,1.00415675]
[1760529278922,0.07234872,112200.0,112190.0,0.89235675]
[1760529279129,0.07234872,112200.0,112190.0,1.00415675]
[1760529279311,0.07234872,112200.0,112190.0,0.89235675]
[1760529279718,0.07234872,112200.0,112190.0,1.00415675]
[1760529280048,0.07234872,112200.0,112190.0,0.89235675]
[1760529280627,0.07234872,112200.0,112190.0,1.00415675]
[1760529281249,0.07234872,112200.0,112190.0,0.89235675]
[1760529281404,0.07234872,112200.0,112190.0,1.00415675]
[1760529282070,0.07234872,112200.0,112190.0,0.89235675]
[1760529282280,0.07234872,112200.0,112190.0,1.00415675]
[1760529282482,0.07234872,112200.0,112190.0,0.89235675]
[1760529282699,0.07234872,112200.0,112190.0,1.00415675]
[1760529286510,0.07234872,112200.0,112190.0,0.89235675]
[1760529286717,0.07234872,112200.0,112190.0,1.00415675]
[1760529286913,0.07234872,112200.0,112190.0,1.02201675]
[1760529287139,0.07234872,112200.0,112190.0,1.00415675]
[1760529287353,0.07234872,112200.0,112190.0,0.89235675]
[1760529288359,0.07234872,112200.0,112190.0,1.00415675]
[1760529289604,0.07234872,112200.0,112190.0,0.89235675]
[1760529290356,0.07234872,112200.0,112190.0,1.00415675]
[1760529290593,0.07234872,112200.0,112190.0,0.89235675]
[1760529290794,0.07234872,112200.0,112190.0,1.00415675]
[1760529291028,0.07234872,112200.0,112190.0,0.89235675]
[1760529291892,0.07234872,112200.0,112190.0,0.13671469]
[1760529292045,0.07234872,112200.0,112190.0,0.91012314]
[1760529292249,0.07234872,112200.0,112190.0,1.00415675]
[1760529292875,0.07234872,112200.0,112190.0,0.89235675]
[1760529293078,0.07234872,112200.0,112190.0,1.00415675]
[1760529293446,0.07234872,112200.0,112190.0,1.09813675]
[1760529293646,0.07234872,112200.0,112190.0,1.00415675]
[1760529295852,0.07234872,112200.0,112190.0,0.89235675]
[1760529297258,0.05785073,112200.0,112190.0,0.89235675]
[1760529297827,0.05785073,112200.0,112190.0,1.00415675]
[1760529298212,0.05785073,112200.0,112190.0,0.89235675]
[1760529298410,0.05785073,112200.0,112190.0,1.00415675]
[1760529299223,0.05785073,112200.0,112190.0,0.89235675]
[1760529299715,0.05793982,112200.0,112190.0,0.89235675]
[1760529299914,0.05793982,112200.0,112190.0,1.38197778]
[1760529300113,0.05793982,112200.0,112190.0,1.00415675]
[1760529300734,0.04638164,112220.0,112210.0,0.37782103]
[1760529300950,0.04647089,112220.0,112210.0,0.48962103]
[1760529301550,0.04647089,112220.0,112210.0,0.51642034]
[1760529302002,0.04647089,112220.0,112210.0,0.51742034]
[1760529302206,0.04647089,112220.0,112210.0,0.51842034]
[1760529304278,0.04647089,112220.0,112210.0,0.89624137]
[1760529304492,0.04647089,112220.0,112210.0,0.78444137]
[1760529304691,0.04647089,112220.0,112210.0,0.89624137]
[1760529306344,0.04647089,112220.0,112210.0,0.14059931]
[1760529306548,0.04647089,112220.0,112210.0,0.15842303]
[1760529306742,0.04647089,112220.0,112210.0,0.42444406]
[1760529306945,0.04647089,112220.0,112210.0,0.53628034]
[1760529307122,0.04647089,112220.0,112210.0,0.51842034]
[1760529308483,0.04647089,112220.0,112210.0,0.40662034]
[1760529308697,0.04647089,112220.0,112210.0,0.02879931]
[1760529308865,0.04647089,112220.0,112210.0,0.51842034]
[1760529311983,0.04647089,112220.0,112210.0,0.14055931]
[1760529312229,0.04647089,112220.0,112210.0,0.02879931]
[1760529313351,0.06111798,112220.0,112210.0,0.002]
[1760529313481,4.54979498,112220.0,112210.0,0.002]
[1760529314517,4.54979498,112220.0,112210.0,0.001]
[1760529314729,4.488677,112210.0,112200.0,0.12886094]
[1760529314921,4.488677,112210.0,112200.0,0.01706094]
[1760529315145,4.498677,112210.0,112190.0,0.1386104]
[1760529315344,0.01,112210.0,112190.0,0.1386104]
[1760529315546,4.5147889,112210.0,112190.0,0.0268104]
[1760529315787,4.488677,112190.0,112170.0,0.00057959]
[1760529315948,4.488677,112200.0,112170.0,0.02739464]
[1760529316150,4.488677,112190.0,112170.0,0.02739464]
[1760529316349,4.488677,112200.0,112170.0,0.02739464]
[1760529316554,4.488677,112190.0,112170.0,0.00057959]
[1760529316758,4.518677,112190.0,112170.0,0.00057959]
[1760529316960,0.03,112190.0,112170.0,0.00057959]
[1760529317244,0.05441495,112190.0,112170.0,0.00057959]
[1760529317835,0.04441485,112190.0,112170.0,0.11241959]
[1760529318259,0.04441485,112190.0,112170.0,0.11341959]
[1760529318457,0.01441485,112190.0,112170.0,0.00157959]
[1760529318688,0.0161119,112210.0,112170.0,0.00157959]
[1760529318886,4.488677,112200.0,112170.0,0.00157959]
[1760529319094,0.0100001,112190.0,112170.0,0.11341959]
[1760529319253,0.0100001,112190.0,112170.0,0.00157959]
[1760529319457,4.488677,112200.0,112170.0,0.11241959]
[1760529319675,0.0100001,112190.0,112170.0,0.00057959]
[1760529319876,4.488677,112200.0,112170.0,0.11241959]
[1760529320079,0.0100001,112190.0,112170.0,0.00057959]
[1760529320279,4.488677,112200.0,112170.0,0.00057959]
[1760529320481,0.0100001,112190.0,112170.0,0.00057959]
[1760529320723,0.0100001,112190.0,112170.0,0.11241959]
[1760529320906,4.488677,112190.0,112170.0,0.11241959]
[1760529321102,4.488677,112200.0,112170.0,0.11241959]
[1760529321430,0.0100001,112190.0,112170.0,0.00057959]
[1760529321635,4.488677,112190.0,112170.0,0.11241959]
[1760529321803,4.488677,112200.0,112170.0,0.11241959]
[1760529322006,0.0100001,112190.0,112170.0,0.11241959]
[1760529322229,0.0100001,112190.0,112170.0,0.11341959]
[1760529322413,4.488677,112190.0,112170.0,0.11341959]
[1760529322637,4.488677,112200.0,112170.0,0.11341959]
[1760529322836,0.0100001,112190.0,112170.0,0.00157959]
[1760529323054,4.488677,112190.0,112170.0,0.11341959]
[1760529323268,4.488677,112200.0,112170.0,0.11341959]
[1760529323444,0.0100001,112190.0,112170.0,0.00157959]
[1760529323783,0.0500001,112190.0,112170.0,0.00157959]
[1760529324933,0.0500001,112190.0,112170.0,0.00057959]
[1760529325752,4.4986771,112180.0,112170.0,0.00057959]
[1760529325971,0.03,112180.0,112170.0,0.00057959]
[1760529326741,0.09400011,112180.0,112170.0,0.00057959]
[1760529326914,0.0400001,112180.0,112170.0,0.00066868]
[1760529327131,0.03,112180.0,112170.0,0.00066868]
[1760529330146,4.518677,112180.0,112170.0,0.00066868]
[1760529333630,4.56505864,112180.0,112170.0,0.00066868]
[1760529337484,4.60038667,112180.0,112170.0,0.00066868]
[1760529337696,4.67115567,112180.0,112170.0,0.00066868]
[1760529338244,4.69006738,112180.0,112170.0,0.00066868]
[1760529338451,4.71386929,112180.0,112170.0,0.00066868]
[1760529339616,4.7455175,112180.0,112170.0,0.00066868]
[1760529339820,4.7465175,112180.0,112170.0,0.00066868]
[1760529340260,4.7455175,112180.0,112170.0,0.00066868]
[1760529340595,4.7475175,112180.0,112170.0,0.00066868]
[1760529341413,4.72371559,112180.0,112170.0,0.00066868]
[1760529341634,4.77127671,112180.0,112170.0,0.00066868]
[1760529342481,4.7396285,112180.0,112170.0,0.00066868]
[1760529342622,4.68153695,112180.0,112170.0,0.00066868]
[1760529342823,4.63397583,112180.0,112170.0,0.00066868]
[1760529343030,4.65766904,112180.0,112170.0,0.00066868]
[1760529343439,4.63297583,112180.0,112170.0,0.00066868]
[1760529343874,4.63397583,112180.0,112170.0,0.00066868]
[1760529344051,4.65667797,112180.0,112170.0,0.00066868]
[1760529344383,4.62508744,112180.0,112170.0,0.00066868]
[1760529344532,4.62408744,112180.0,112170.0,0.00066868]
[1760529344728,4.71376952,112180.0,112170.0,0.00066868]
[1760529345786,4.62408744,112180.0,112170.0,0.00066868]
[1760529346042,4.6003853,112180.0,112170.0,0.00066868]
[1760529349904,4.60046033,112180.0,112170.0,0.00066868]
[1760529350693,0.11178333,112180.0,112170.0,0.00066868]
[1760529350928,0.09287162,112180.0,112170.0,0.00066868]
[1760529351337,0.10287172,112180.0,112170.0,0.00066868]
[1760529351740,0.08638174,112180.0,112170.0,0.00066868]
[1760529352435,0.08638174,112180.0,112170.0,0.00166868]
[1760529354279,0.07638164,112180.0,112170.0,0.00166868]
[1760529357461,0.08638174,112180.0,112170.0,0.00166868]
[1760529358112,4.488677,112170.0,112130.0,0.13608156]
[1760529358316,0.03,112170.0,112130.0,0.13657829]
[1760529358530,4.488677,112160.0,112130.0,0.13657829]
[1760529358779,0.01,112160.0,112130.0,0.13657829]
[1760529358983,0.01,112160.0,112130.0,0.00049673]
[1760529360033,0.01,112160.0,112130.0,0.00149673]
[1760529361053,0.01,112160.0,112130.0,0.00249673]
[1760529361899,0.01,112160.0,112130.0,0.02033316]
[1760529363109,0.06200001,112160.0,112130.0,0.02033316]
[1760529363410,0.01,112160.0,112130.0,0.00249673]
[1760529364337,0.01,112160.0,112130.0,0.00149673]
[1760529364450,4.488677,112150.0,112130.0,0.00149673]
[1760529364650,0.01,112150.0,112130.0,0.00149673]
[1760529364872,0.01,112150.0,112130.0,0.00049673]
[1760529365069,0.0200001,112150.0,112130.0,0.00049673]
[1760529365282,0.0200001,112150.0,112130.0,0.00149673]
[1760529365749,0.0200001,112150.0,112130.0,0.00049673]
[1760529365925,0.0200001,112150.0,112140.0,0.0017393]
[1760529366149,0.01,112150.0,112140.0,0.0017393]
[1760529366593,4.498677,112150.0,112140.0,0.0017393]
[1760529366798,4.58835908,112150.0,112140.0,0.0017393]
[1760529368087,4.78835908,112150.0,112140.0,0.0017393]
[1760529371951,4.63640508,112150.0,112140.0,0.0017393]
[1760529373093,4.546723,112150.0,112140.0,0.0017393]
[1760529374366,4.59310464,112150.0,112140.0,0.0017393]
[1760529375432,0.32638164,112150.0,112140.0,0.0017393]
[1760529380210,0.3207493,112150.0,112140.0,0.0017393]
[1760529380429,0.32004562,112150.0,112140.0,0.0017393]
[1760529382276,0.24004562,112150.0,112140.0,0.0017393]
[1760529383859,0.24004562,112150.0,112140.0,0.0027393]
[1760529393017,0.25004562,112150.0,112140.0,0.0027393]
[1760529396217,0.25004562,112150.0,112140.0,0.1147793]
[1760529396451,0.25004562,112150.0,112140.0,0.0027393]
[1760529396664,0.25004562,112150.0,112140.0,0.1147793]
[1760529397587,0.24004562,112150.0,112140.0,0.1147793]
[1760529397798,0.24004562,112150.0,112140.0,0.0027393]
[1760529398000,0.24004562,112150.0,112140.0,0.1147793]
[1760529398203,0.24004562,112150.0,112140.0,0.0027393]
[1760529400599,0.24004562,112150.0,112140.0,0.1147393]
[1760529401024,0.24004562,112150.0,112140.0,0.40804708]
[1760529401262,0.24004562,112150.0,112140.0,0.52008708]
[1760529401482,0.24004562,112150.0,112140.0,0.14160099]
[1760529401705,0.24004562,112150.0,112140.0,0.02956099]
[1760529401923,0.24004562,112150.0,112140.0,0.14160099]
[1760529402132,0.24004562,112150.0,112140.0,0.04739583]
[1760529402340,0.24004562,112150.0,112140.0,0.15943583]
[1760529402545,0.24004562,112150.0,112140.0,0.04739583]
[1760529402736,0.24004562,112150.0,112140.0,0.02956099]
[1760529403024,0.24004562,112150.0,112140.0,0.04273661]
[1760529403273,0.24004562,112150.0,112140.0,0.02490177]
[1760529405400,0.23939017,112150.0,112140.0,0.02490177]
[1760529406277,0.23939017,112150.0,112130.0,0.01833316]
[1760529406495,0.24939017,112150.0,112130.0,0.04515811]
[1760529414349,0.23939017,112150.0,112130.0,0.01833316]
[1760529414588,0.23939017,112150.0,112130.0,0.13033316]
[1760529414793,0.23939017,112150.0,112140.0,0.02682323]
[1760529415532,0.23939017,112150.0,112130.0,0.01833316]
[1760529415697,0.23939017,112150.0,112130.0,0.04515718]
[1760529416917,0.23939017,112150.0,112130.0,0.01833316]
[1760529417310,0.23939017,112150.0,112130.0,0.04515718]
[1760529419109,0.09347218,112190.0,112130.0,0.04515718]
[1760529419312,4.266723,112170.0,112130.0,0.04515718]
[1760529419530,0.0100001,112160.0,112130.0,0.04515718]
[1760529419762,0.0200001,112160.0,112130.0,0.04515718]
[1760529419965,0.01,112160.0,112130.0,0.04515718]
[1760529420975,0.01,112160.0,112130.0,0.01833316]
[1760529421175,0.01,112160.0,112130.0,0.04515718]
[1760529422336,0.01,112160.0,112130.0,0.01833316]
[1760529422547,0.01,112160.0,112140.0,0.02682402]
[1760529429199,4.266723,112170.0,112140.0,0.02682402]
[1760529429478,4.266723,112180.0,112140.0,0.02682402]
[1760529429681,0.08968208,112170.0,112140.0,0.02682402]
[1760529429888,0.04,112170.0,112140.0,0.02682402]
[1760529431706,4.266723,112160.0,112140.0,0.02682402]
[1760529431916,0.02,112160.0,112140.0,0.02682402]
[1760529433317,4.286723,112160.0,112140.0,0.02682402]
[1760529433528,0.02,112160.0,112140.0,0.02682402]
[1760529434549,0.02,112160.0,112130.0,0.00107662]
[1760529434754,4.266723,112150.0,112130.0,0.0279015]
[1760529434966,0.04,112150.0,112130.0,0.00107662]
[1760529435280,0.04989419,112150.0,112130.0,0.00107662]
[1760529435561,0.04,112150.0,112130.0,0.00107662]
[1760529435806,0.04989419,112150.0,112130.0,0.00107662]
[1760529436010,0.04,112150.0,112130.0,0.00107662]
[1760529438166,4.27661719,112140.0,112130.0,0.00107662]
[1760529438375,0.07,112140.0,112130.0,0.00107662]
[1760529439611,0.07,112140.0,112130.0,0.00207662]
[1760529439895,0.07,112140.0,112130.0,0.00307662]
[1760529442512,0.08235338,112140.0,112130.0,0.00307662]
[1760529449564,0.07967816,112140.0,112130.0,0.00307662]
[1760529455104,0.08863539,112140.0,112130.0,0.00307662]
[1760529456826,4.35535839,112140.0,112130.0,0.00307662]
[1760529457414,4.55535839,112140.0,112130.0,0.00307662]
[1760529457773,4.55535839,112140.0,112130.0,0.00207662]
[1760529457908,4.55535839,112140.0,112130.0,0.00107662]
[1760529461768,4.54640116,112140.0,112130.0,0.00107662]
[1760529469504,4.54372594,112140.0,112130.0,0.00107662]
[1760529475553,4.56029153,112140.0,112130.0,0.00107662]
[1760529476381,4.37324859,112140.0,112130.0,0.00107662]
[1760529476549,4.356683,112140.0,112130.0,0.00107662]
[1760529478266,4.3694012,112140.0,112130.0,0.00107662]
[1760529478470,4.38597075,112140.0,112130.0,0.00107662]
[1760529483919,4.3694012,112140.0,112130.0,0.00107662]
[1760529484322,4.38598704,112140.0,112130.0,0.00107662]
[1760529485857,4.3694012,112140.0,112130.0,0.00107662]
[1760529488383,4.45577227,112140.0,112130.0,0.00107662]
[1760529489285,4.3694012,112140.0,112130.0,0.00107662]
[1760529489613,4.36672598,112140.0,112130.0,0.00107662]
[1760529506701,4.30672598,112140.0,112130.0,0.00107662]
[1760529508977,0.21004298,112140.0,112130.0,0.01891305]
[1760529509215,0.19732478,112140.0,112130.0,0.01891305]
[1760529509437,0.19732478,112140.0,112130.0,0.13091305]
[1760529509640,0.19732478,112140.0,112130.0,0.15773851]
[1760529510361,0.19732478,112140.0,112130.0,0.15873851]
[1760529511240,0.19732478,112140.0,112130.0,0.15973851]
[1760529511556,0.19732478,112140.0,112130.0,0.15873851]
[1760529512063,0.19732478,112140.0,112130.0,0.15973851]
[1760529512895,0.19732478,112140.0,112130.0,0.04773851]
[1760529513698,0.19732478,112140.0,112130.0,0.15973851]
[1760529514119,0.19732478,112140.0,112130.0,0.04773851]
[1760529514335,0.19732478,112140.0,112130.0,0.15973851]
[1760529515359,0.19732478,112140.0,112130.0,0.04773851]
[1760529515790,0.19732478,112140.0,112130.0,0.15973851]
[1760529516402,0.19732478,112140.0,112130.0,0.04773851]
[1760529516637,0.19732478,112140.0,112130.0,0.15969851]
[1760529516805,0.19732478,112140.0,112130.0,0.04773851]
[1760529517208,0.19732478,112140.0,112130.0,0.15969851]
[1760529517404,0.19732478,112140.0,112130.0,0.04773851]
[1760529517634,0.19732478,112140.0,112130.0,0.15969851]
[1760529522698,0.19732478,112140.0,112130.0,0.04773851]
[1760529522924,0.19732478,112140.0,112130.0,0.15969851]
[1760529525275,0.19732478,112140.0,112130.0,0.04773851]
[1760529525481,0.19732478,112140.0,112130.0,0.15969851]
[1760529526850,0.19732478,112140.0,112130.0,0.04773851]
[1760529527057,0.19732478,112140.0,112130.0,0.15969851]
[1760529537245,0.19732478,112140.0,112130.0,0.53814967]
[1760529537453,0.19732478,112140.0,112130.0,0.52031324]
[1760529538166,0.19732478,112140.0,112130.0,0.14186208]
[1760529538310,0.19732478,112140.0,112130.0,0.15969851]
[1760529540407,0.19732478,112140.0,112130.0,0.04773851]
[1760529540631,0.19732478,112140.0,112130.0,0.15965851]
[1760529541999,0.19732478,112140.0,112130.0,0.04773851]
[1760529542200,0.19732478,112140.0,112130.0,0.15965851]
[1760529542414,0.19732478,112140.0,112130.0,0.04773851]
[1760529542923,0.19732478,112140.0,112130.0,0.15965851]
[1760529543476,0.19732478,112140.0,112130.0,0.04773851]
[1760529543873,0.19732478,112140.0,112130.0,0.15965851]
[1760529546469,0.19732478,112140.0,112130.0,0.04773851]
[1760529546668,0.19732478,112140.0,112130.0,0.15965851]
[1760529547851,0.19732478,112140.0,112130.0,0.04773851]
[1760529548293,0.19732478,112140.0,112130.0,0.15965851]
[1760529548514,0.19732478,112140.0,112130.0,0.04773851]
[1760529548724,0.19732478,112140.0,112130.0,0.15965851]
[1760529548910,0.19732478,112140.0,112130.0,0.04773851]
[1760529549388,0.19732478,112140.0,112130.0,0.42618967]
[1760529549616,0.19732478,112140.0,112130.0,0.52027324]
[1760529551208,0.19732478,112140.0,112130.0,0.14182208]
[1760529551382,0.19732478,112140.0,112130.0,0.53810967]
[1760529551595,0.19732478,112140.0,112130.0,0.40835324]
[1760529551754,0.19732478,112140.0,112130.0,0.52027324]
[1760529552329,0.19732478,112140.0,112130.0,0.02990208]
[1760529552457,0.19732478,112140.0,112130.0,0.15965851]
[1760529554382,0.19732478,112140.0,112130.0,0.04773851]
[1760529554593,0.19732478,112140.0,112130.0,0.15965851]
[1760529554783,0.19732478,112140.0,112130.0,0.04773851]
[1760529554965,0.19732478,112140.0,112130.0,0.15965851]
[1760529555387,0.19732478,112140.0,112130.0,0.53810967]
[1760529555595,0.19732478,112140.0,112130.0,0.52027324]
[1760529556471,0.19732478,112140.0,112130.0,0.14182208]
[1760529556682,0.19732478,112140.0,112130.0,0.15965851]
[1760529557577,0.19732478,112140.0,112130.0,0.53810967]
[1760529557780,0.19732478,112140.0,112130.0,0.52027324]
[1760529560544,0.00788745,112160.0,112130.0,0.52027324]
[1760529560749,4.096683,112160.0,112140.0,0.01544613]
[1760529561331,4.096683,112160.0,112140.0,0.04226993]
[1760529561734,4.096683,112160.0,112150.0,0.11192]
[1760529562213,4.096683,112160.0,112140.0,0.04226993]
[1760529562445,4.096683,112160.0,112150.0,0.11192]
[1760529563349,4.13348251,112160.0,112150.0,0.11192]
[1760529563549,0.03679951,112160.0,112150.0,0.11192]
[1760529563756,4.096683,112160.0,112150.0,0.11192]
[1760529565933,4.096683,112160.0,112140.0,0.04226993]
[1760529566141,4.096683,112160.0,112150.0,0.11192]
[1760529566348,4.096683,112160.0,112140.0,0.04226993]
[1760529566550,4.096683,112160.0,112150.0,0.11192]
[1760529567897,0.03662099,112160.0,112140.0,0.04226993]
[1760529568252,4.096683,112160.0,112150.0,0.11192]
[1760529572783,4.13368043,112160.0,112150.0,0.11192]
[1760529572981,0.03699743,112160.0,112150.0,0.11192]
[1760529573406,4.096683,112160.0,112150.0,0.11192]
[1760529577612,4.096683,112160.0,112140.0,0.04226993]
[1760529577802,4.096683,112160.0,112150.0,0.11192]
[1760529578002,0.03647884,112160.0,112140.0,0.0268238]
[1760529578208,0.01455341,112170.0,112140.0,0.0268238]
[1760529578428,4.096683,112160.0,112150.0,0.11192]
[1760529580458,4.096683,112160.0,112140.0,0.0268238]
[1760529580640,4.096683,112160.0,112150.0,0.11192]
[1760529581083,4.096683,112160.0,112140.0,0.0268238]
[1760529581267,4.096683,112160.0,112150.0,0.11192]
[1760529581894,4.096683,112160.0,112140.0,0.0268238]
[1760529582064,0.00989419,112150.0,112140.0,0.0268238]
[1760529582460,4.096683,112160.0,112140.0,0.1387438]
[1760529582777,0.00989419,112150.0,112140.0,0.0268238]
[1760529582975,4.096683,112160.0,112140.0,0.1387438]
[1760529583197,0.00989419,112150.0,112140.0,0.0268238]
[1760529583412,0.00989419,112160.0,112140.0,0.1397438]
[1760529583602,0.00989419,112160.0,112140.0,0.0278238]
[1760529583896,0.00989419,112160.0,112140.0,0.1387438]
[1760529584099,0.00989419,112160.0,112140.0,0.0268238]
[1760529584300,0.00989419,112160.0,112140.0,0.1387438]